bitfinex/quotes_ETHUSD_20250504
["timestamp","ask_amount","ask_price","bid_price","bid_amount"]
[1746355724897,0.17457341,1832.7,1832.6,22.32835235]
[1746355725401,4.5,1832.9,1832.6,22.32835235]
[1746355725777,0.17496602,1832.8,1832.6,22.32835235]
[1746355725995,4.5,1832.9,1832.7,2.23283524]
[1746355726196,4.5,1832.9,1832.6,14.5]
[1746355726197,0.17496602,1832.8,1832.6,14.5]
[1746355726368,9.95587396,1832.9,1832.6,14.5]
[1746355726700,0.17496602,1832.8,1832.6,14.5]
[1746355727185,9.95587396,1832.9,1832.6,14.5]
[1746355727392,0.17457341,1832.7,1832.6,14.5]
[1746355727593,9.95587396,1832.9,1832.6,17.41729726]
[1746355727903,0.17280392,1832.8,1832.6,17.41729726]
[1746355728213,9.95587396,1832.9,1832.6,17.41729726]
[1746355728418,0.17280392,1832.8,1832.6,17.41729726]
[1746355728584,9.95587396,1832.9,1832.6,17.41729726]
[1746355729020,0.17280392,1832.8,1832.6,17.41729726]
[1746355729317,9.95587396,1832.9,1832.6,17.41729726]
[1746355729493,0.17241131,1832.7,1832.6,17.41729726]
[1746355729695,4.5,1832.9,1832.6,22.8740254]
[1746355729884,0.17241131,1832.7,1832.6,22.8740254]
[1746355730085,4.5,1832.9,1832.6,22.8740254]
[1746355730608,0.17280392,1832.8,1832.6,22.8740254]
[1746355730813,4.5,1832.9,1832.6,22.8740254]
[1746355731002,0.17280392,1832.8,1832.6,22.8740254]
[1746355731203,4.5,1832.9,1832.6,22.8740254]
[1746355731405,0.17280392,1832.8,1832.6,22.8740254]
[1746355732018,0.17241131,1832.7,1832.6,22.8740254]
[1746355732221,4.5,1832.9,1832.6,22.8740254]
[1746355732395,0.17280392,1832.8,1832.6,19.95672814]
[1746355732599,4.5,1832.9,1832.6,19.95672814]
[1746355732918,0.17280392,1832.8,1832.6,14.5]
[1746355733433,0.16770281,1832.7,1832.6,19.95672565]
[1746355733817,4.5,1832.9,1832.6,19.95672565]
[1746355734017,0.16770281,1832.7,1832.6,19.95672565]
[1746355734226,0.16770281,1832.7,1832.6,21.95060446]
[1746355734423,4.5,1832.9,1832.6,21.95060446]
[1746355734620,0.16809542,1832.8,1832.6,19.95672565]
[1746355734825,4.5,1832.9,1832.6,19.95672565]
[1746355735029,0.16809542,1832.8,1832.6,19.95672565]
[1746355735329,4.5,1832.9,1832.6,19.95672565]
[1746355735529,0.16770281,1832.7,1832.6,19.95672565]
[1746355735709,4.5,1832.9,1832.6,19.95672565]
[1746355736039,0.16392071,1832.8,1832.6,19.95672565]
[1746355736240,4.5,1832.9,1832.6,19.95672565]
[1746355736441,0.16392071,1832.8,1832.6,19.95672565]
[1746355736643,4.5,1832.9,1832.6,19.95672565]
[1746355736848,5.45672814,1832.6,1832.5,3.68030512]
[1746355737141,5.71986358,1832.6,1832.5,3.68030512]
[1746355738207,5.71986358,1832.6,1832.2,20.77630693]
[1746355740140,11.17684009,1832.6,1832.2,20.77630693]
[1746355740444,5.71986358,1832.6,1832.2,20.77631027]
[1746355740615,5.71986358,1832.6,1832.2,23.39974537]
[1746355741346,5.45726234,1832.5,1832.2,14.5]
[1746355741547,9.95626234,1832.5,1832.2,14.5]
[1746355741743,0.15848333,1832.4,1832.2,14.5]
[1746355742648,0.15848333,1832.4,1832.2,18.1852769]
[1746355744426,5.61581515,1832.4,1832.2,18.1852769]
[1746355744938,0.15848333,1832.4,1832.2,18.1852769]
[1746355746036,5.61586302,1832.4,1832.2,18.1852769]
[1746355746630,0.15848333,1832.4,1832.2,18.1852769]
[1746355749556,5.61586631,1832.4,1832.2,18.1852769]
[1746355749892,0.15848333,1832.4,1832.2,18.1852769]
[1746355750063,0.15848333,1832.4,1832.2,14.5]
[1746355750387,5.71591972,1832.4,1832.2,14.5]
[1746355750688,5.45762156,1832.3,1832.2,14.5]
[1746355751187,5.61446097,1832.3,1832.2,14.5]
[1746355751389,5.61446097,1832.3,1832.1,3.6852769]
[1746355751558,5.45791944,1832.2,1832.1,3.6852769]
[1746355752060,5.61436597,1832.2,1832.1,18.1852769]
[1746355752259,0.15644653,1832.2,1832.1,18.1852769]
[1746355752786,5.61436597,1832.2,1832.1,18.1852769]
[1746355753179,5.61436597,1832.2,1832.0,3.6852769]
[1746355753393,11.1725289,1832.2,1832.0,3.6852769]
[1746355753697,5.45821734,1832.1,1832.0,3.6852769]
[1746355754157,5.6159235,1832.1,1832.0,3.6852769]
[1746355754351,10.1149235,1832.1,1832.0,3.6852769]
[1746355756398,5.45871229,1832.0,1831.7,3.6852769]
[1746355756594,10.11511823,1832.1,1831.7,3.6852769]
[1746355756800,0.15250307,1831.9,1831.7,18.1852769]
[1746355757097,0.15210994,1831.8,1831.7,20.62767527]
[1746355757494,9.95741207,1832.1,1831.7,20.62767527]
[1746355757699,0.15210994,1831.8,1831.7,18.1852769]
[1746355758000,5.45911125,1831.8,1831.7,18.1852769]
[1746355758218,5.60997656,1831.8,1831.7,3.6852769]
[1746355759801,5.60997656,1831.8,1831.6,14.5]
[1746355761813,0.15086531,1831.8,1831.6,14.5]
[1746355763752,5.61010349,1831.8,1831.6,14.5]
[1746355766466,5.45940929,1831.7,1831.5,0.751]
[1746355766630,0.14536895,1831.6,1831.3,0.7663]
[1746355766832,0.14536895,1831.6,1831.3,7.25985949]
[1746355767015,0.14536895,1831.6,1831.4,14.5]
[1746355768917,5.60530191,1831.6,1831.4,14.5]
[1746355769544,0.14536895,1831.6,1831.4,14.5]
[1746355771414,0.14536895,1831.6,1831.1,9.14630479]
[1746355771622,5.70519334,1831.6,1831.2,5.51535693]
[1746355771845,5.70519334,1831.6,1831.3,14.5]
[1746355772050,0.24536895,1831.6,1831.3,14.5]
[1746355774863,0.24536895,1831.6,1831.3,19.96057755]
[1746355775059,5.46055418,1831.4,1831.0,3.6852769]
[1746355775260,0.1424359,1831.3,1831.0,10.88326105]
[1746355775449,5.46031183,1831.4,1831.0,10.88326105]
[1746355775650,0.1424359,1831.3,1831.1,14.5]
[1746355775853,5.46031183,1831.4,1831.1,14.5]
[1746355776052,0.1424359,1831.3,1831.1,14.5]
[1746355776362,5.46031183,1831.4,1831.1,14.5]
[1746355776565,0.14204235,1831.2,1831.1,14.5]
[1746355776727,5.4601551,1831.5,1831.1,14.5]
[1746355776932,0.14204235,1831.2,1831.1,19.96119818]
[1746355777266,0.14204235,1831.2,1831.1,14.5]
[1746355777828,5.56032686,1831.4,1831.1,14.5]
[1746355778032,0.1424359,1831.3,1831.1,14.5]
[1746355778244,5.56032686,1831.4,1831.1,14.5]
[1746355778443,0.1424359,1831.3,1831.0,7.19794395]
[1746355778777,9.96070893,1831.3,1830.9,9.14703324]
[1746355779080,0.14143836,1831.2,1831.0,14.5]
[1746355779970,0.14143836,1831.2,1831.0,20.71281985]
[1746355780481,0.14143836,1831.2,1831.0,15.2514]
[1746355783084,0.14143836,1831.2,1831.0,14.5]
[1746355786702,0.14143836,1831.2,1831.0,19.96144435]
[1746355786867,0.14143836,1831.2,1831.0,14.5]
[1746355793205,0.14143836,1831.2,1831.0,19.9613834]
[1746355795489,0.14143836,1831.2,1831.0,14.5]
[1746355796818,0.14143836,1831.2,1831.0,19.96149442]
[1746355799619,0.14143836,1831.2,1831.0,19.96144805]
[1746355799818,0.14143836,1831.2,1831.0,22.5789022]
[1746355802123,0.14143836,1831.2,1831.1,0.30698765]
[1746355802830,0.14143836,1831.2,1831.1,14.80698765]
[1746355805140,0.14143836,1831.2,1831.1,0.30698765]
[1746355805825,5.60233831,1831.2,1831.1,0.30698765]
[1746355806445,0.14143836,1831.2,1831.1,0.30698765]
[1746355809066,0.14143836,1831.2,1831.0,14.5]
[1746355810756,0.14143836,1831.2,1831.1,0.30747427]
[1746355814085,0.44930589,1831.2,1831.0,19.96146943]
[1746355814446,0.44930589,1831.2,1831.1,0.7975]
[1746355814647,0.14143836,1831.2,1831.1,0.7975]
[1746355815088,0.14143836,1831.2,1831.1,1.10486457]
[1746355815283,0.14143836,1831.2,1831.1,6.56606275]
[1746355815598,0.14143836,1831.2,1831.1,8.67269615]
[1746355815883,0.14143836,1831.2,1831.1,23.17269615]
[1746355816087,6.04,1831.6,1831.2,5.46063908]
[1746355816289,15.41917891,1831.7,1831.2,5.46063908]
[1746355816475,5.45972758,1831.6,1831.2,5.46063908]
[1746355816792,5.45972758,1831.6,1831.3,0.30736457]
[1746355816996,5.45972758,1831.6,1831.3,14.80736457]
[1746355817154,5.45972758,1831.6,1831.4,0.30736457]
[1746355817576,10.05959962,1831.7,1831.4,0.30736457]
[1746355817773,10.05959962,1831.7,1831.5,0.30736457]
[1746355818520,10.05959962,1831.7,1831.3,19.96056933]
[1746355818521,10.05959962,1831.7,1831.6,0.30736457]
[1746355823495,9.95959962,1831.7,1831.6,0.30736457]
[1746355826397,10.05959962,1831.7,1831.6,0.30736457]
[1746355827935,10.18308852,1831.7,1831.6,0.30736457]
[1746355829644,11.27156391,1831.7,1831.6,0.30736457]
[1746355829935,10.18308852,1831.7,1831.6,0.30736457]
[1746355834639,5.46000546,1831.5,1831.4,0.30736457]
[1746355835017,5.58342466,1831.5,1831.4,0.30736457]
[1746355840651,0.1234192,1831.5,1831.4,0.30736457]
[1746355849972,4.6214192,1831.5,1831.4,0.30736457]
[1746355856407,0.1234192,1831.5,1831.4,8.39753231]
[1746355856772,15.99592945,1831.9,1831.5,5.4599238]
[1746355856978,0.11091601,1831.8,1831.5,6.2405238]
[1746355857174,0.11091601,1831.8,1831.5,5.4599238]
[1746355857375,4.497,1832.0,1831.7,0.8204]
[1746355857576,9.95564529,1832.0,1831.7,0.8204]
[1746355857984,0.11160062,1831.9,1831.8,0.30736457]
[1746355859689,0.11160062,1831.9,1831.8,6.58687582]
[1746355859922,0.11160062,1831.9,1831.8,21.08687582]
[1746355860383,6.04,1832.2,1831.8,20.26647582]
[1746355860580,4.497,1832.3,1831.9,0.8204]
[1746355860581,5.45827417,1832.1,1831.9,0.8204]
[1746355861001,5.45851528,1832.0,1831.9,0.8204]
[1746355861636,5.45837316,1832.1,1831.9,0.8204]
[1746355861919,5.45837316,1832.1,1831.9,1.12664856]
[1746355862414,5.45837316,1832.1,1832.0,0.30624856]
[1746355862644,6.54684855,1832.1,1832.0,0.30624856]
[1746355862791,5.45837316,1832.1,1832.0,0.30624856]
[1746355866444,5.45809269,1832.2,1832.0,0.30624856]
[1746355866654,15.99476672,1832.3,1832.0,0.30624856]
[1746355866863,15.99474454,1832.3,1832.0,0.30624856]
[1746355867158,15.99474454,1832.3,1831.9,6.26087202]
[1746355867454,15.99474454,1832.3,1832.1,0.30588072]
[1746355868324,15.99474454,1832.3,1832.2,0.30588072]
[1746355873072,16.11236333,1832.3,1832.2,0.30588072]
[1746355880070,16.21236333,1832.3,1832.2,0.30588072]
[1746355880571,19.21236333,1832.3,1832.2,0.30588072]
[1746355881563,5.45888676,1831.9,1831.6,18.1852769]
[1746355881755,9.95488676,1831.9,1831.6,18.1852769]
[1746355881944,0.1162275,1831.8,1831.6,18.1852769]
[1746355882326,0.1162275,1831.8,1831.7,0.30599722]
[1746355882533,0.1162275,1831.8,1831.7,1.06099722]
[1746355884238,0.1162275,1831.8,1831.7,2.98562463]
[1746355885030,0.1162275,1831.8,1831.7,1.06099722]
[1746355885229,0.1162275,1831.8,1831.7,15.56099722]
[1746355886443,0.1162275,1831.8,1831.7,0.30599722]
[1746355889850,5.57533875,1831.8,1831.7,0.30599722]
[1746355895451,5.67533875,1831.8,1831.7,0.30599722]
[1746355901746,11.71533875,1831.8,1831.7,0.30599722]
[1746355904952,5.45966928,1831.7,1831.4,0.30599722]
[1746355905167,5.45970735,1831.6,1831.5,0.8127]
[1746355905364,5.56907543,1831.6,1831.5,0.8127]
[1746355905882,5.56907543,1831.6,1831.5,1.11869722]
[1746355908591,5.56907543,1831.6,1831.5,0.30599722]
[1746355910287,0.10936808,1831.6,1831.5,0.30599722]
[1746355910587,5.45970735,1831.6,1831.5,0.30599722]
[1746355910754,5.56907543,1831.6,1831.5,0.30599722]
[1746355914989,0.10936808,1831.6,1831.5,0.30599722]
[1746355915201,0.10936808,1831.6,1831.5,6.56630268]
[1746355915501,6.04,1831.8,1831.7,0.8003]
[1746355916416,6.04,1831.8,1831.7,15.60629722]
[1746355918297,4.496,1831.9,1831.7,21.06567617]
[1746355918623,4.496,1831.9,1831.7,15.60629722]
[1746355918983,4.496,1831.9,1831.8,0.30599722]
[1746355925389,4.496,1831.9,1831.8,2.41256564]
[1746355926103,4.496,1831.9,1831.8,3.22216564]
[1746355928091,4.496,1831.9,1831.8,1.11559722]
[1746355928426,4.496,1831.9,1831.8,15.61559722]
[1746355931426,4.496,1831.9,1831.8,1.11559722]
[1746355931926,4.496,1831.9,1831.8,15.61559722]
[1746355932114,5.45853879,1832.0,1831.8,15.61559722]
[1746355933237,5.45853879,1832.0,1831.8,15.3096]
[1746355933542,10.535,1832.1,1831.8,15.3096]
[1746355933938,5.45862049,1832.0,1831.8,15.3096]
[1746355934439,5.45862049,1832.0,1831.9,0.30681479]
[1746355935045,15.99329628,1832.1,1831.9,0.30681479]
[1746355935333,15.99328046,1832.1,1831.9,0.30681479]
[1746355935539,16.09608288,1832.1,1832.0,0.30681479]
[1746355936540,10.63780242,1832.1,1832.0,0.30681479]
[1746355938120,16.09601976,1832.1,1832.0,0.30681479]
[1746355939740,4.59780242,1832.1,1832.0,0.30681479]
[1746355942150,10.05601976,1832.1,1832.0,0.30681479]
[1746355942350,4.59780242,1832.1,1832.0,0.30681479]
[1746355946366,4.59780242,1832.1,1832.0,1.09861479]
[1746355947052,4.59780242,1832.1,1832.0,3.20433891]
[1746355947563,4.59780242,1832.1,1832.0,1.09861479]
[1746355947864,4.59780242,1832.1,1832.0,0.30681479]
[1746355949564,10.05601976,1832.1,1832.0,0.30681479]
[1746355961663,5.45854926,1832.0,1831.8,15.2918]
[1746355961969,0.1033114,1831.9,1831.8,15.2918]
[1746355962573,0.1033114,1831.9,1831.8,15.5989982]
[1746355963647,0.1033114,1831.9,1831.8,18.07336478]
[1746355963850,5.45821734,1832.1,1831.8,18.07336478]
[1746355964038,0.10328204,1831.9,1831.8,18.07336478]
[1746355964240,0.10328204,1831.9,1831.8,21.75864168]
[1746355964762,9.9510564,1832.2,1831.8,26.42595293]
[1746355964959,9.9510564,1832.2,1831.9,0.8062]
[1746355964960,0.10399672,1832.1,1831.9,0.8062]
[1746355965267,9.9510564,1832.2,1831.9,2.01859902]
[1746355965458,9.9510564,1832.2,1832.0,0.3071982]
[1746355965840,9.9510564,1832.2,1832.1,0.3071982]
[1746355973397,9.9510564,1832.2,1831.9,18.9914769]
[1746355973682,9.9510564,1832.2,1832.1,0.30706833]
[1746355977958,10.05605812,1832.2,1832.1,0.30706833]
[1746355984997,4.59800172,1832.2,1832.1,0.30706833]
[1746355985183,4.59800172,1832.2,1832.1,2.95710285]
[1746355987298,4.59800172,1832.2,1832.1,17.45710285]
[1746355987592,0.10500172,1832.2,1832.1,17.45710285]
[1746355987782,11.49747372,1832.4,1832.1,17.45710285]
[1746355988095,0.10580488,1832.3,1832.1,17.45710285]
[1746355988395,11.49747372,1832.4,1832.2,0.30706833]
[1746355988558,0.10588037,1832.3,1832.2,0.30706833]
[1746355988759,11.49747372,1832.4,1832.2,0.30706833]
[1746355989199,0.10565391,1832.3,1832.2,0.30706833]
[1746355989501,11.49747372,1832.4,1832.2,2.05277862]
[1746355989700,0.1057294,1832.3,1832.2,0.30706833]
[1746355989999,11.49747372,1832.4,1832.2,0.30706833]
[1746355990163,0.10565391,1832.3,1832.2,0.30706833]
[1746355990365,11.49747372,1832.4,1832.2,0.30706833]
[1746355990690,0.10565391,1832.3,1832.2,0.30706833]
[1746355990891,0.10565391,1832.3,1832.2,14.5]
[1746355991107,11.49747372,1832.4,1832.2,14.5]
[1746355991277,0.10565391,1832.3,1832.2,14.5]
[1746355991669,11.49747372,1832.4,1832.2,14.5]
[1746355991867,5.45791944,1832.2,1832.1,6.62418378]
[1746355992381,5.56310464,1832.2,1832.1,6.62418378]
[1746355993021,5.56310464,1832.2,1832.1,6.93140317]
[1746355993594,5.45940929,1831.7,1831.6,4.79030289]
[1746355993774,5.56262776,1831.7,1831.6,4.79030289]
[1746355994686,5.66262776,1831.7,1831.6,4.79030289]
[1746355995090,5.45928484,1831.8,1831.6,4.79030289]
[1746355995290,5.45903123,1831.9,1831.6,4.79030289]
[1746355996801,9.95066105,1832.0,1831.7,0.7824]
[1746355996988,9.95066105,1832.0,1831.7,1.33967029]
[1746355997774,5.45816548,1832.2,1831.7,6.79891247]
[1746355997978,4.492,1832.1,1831.8,5.45907473]
[1746355998201,9.95024838,1832.1,1831.7,6.79890126]
[1746355998620,9.95024838,1832.1,1831.8,14.5]
[1746355999109,9.95039895,1832.1,1831.8,14.5]
[1746356000417,9.95039895,1832.1,1831.8,16.02824]
[1746356004016,4.492,1832.1,1831.8,16.02824]
[1746356004316,4.492,1832.1,1831.9,0.7635]
[1746356004717,9.9502505,1832.1,1831.9,0.7635]
[1746356004916,9.9502505,1832.1,1831.9,14.5]
[1746356005212,5.45851528,1832.0,1831.7,0.7635]
[1746356005393,9.95036755,1832.1,1831.7,6.22289515]
[1746356005580,9.95036755,1832.1,1831.7,7.39113281]
[1746356007286,10.05309297,1832.1,1831.7,7.39113281]
[1746356008438,5.4585379,1832.0,1831.7,1.93173766]
[1746356008739,10.05310916,1832.1,1831.7,7.39113481]
[1746356008910,9.95038374,1832.1,1831.7,7.39113481]
[1746356009103,10.05318468,1832.1,1831.8,0.73911348]
[1746356009345,4.59480094,1832.1,1831.8,6.198214]
[1746356011448,4.59480094,1832.1,1831.8,0.73911348]
[1746356011908,4.59480094,1832.1,1831.8,6.19818275]
[1746356013241,10.05304683,1832.1,1831.8,0.73911348]
[1746356013545,5.45852263,1832.0,1831.7,0.7635]
[1746356013921,0.10255861,1832.0,1831.7,6.22286572]
[1746356017918,0.10255861,1832.0,1831.7,6.27745144]
[1746356018316,0.10255861,1832.0,1831.7,0.81808572]
[1746356018515,5.46030359,1831.4,1831.3,0.7873]
[1746356018759,5.46039667,1831.4,1831.0,0.7873]
[1746356018927,5.46060598,1831.3,1831.0,0.7873]
[1746356019135,5.46044927,1831.4,1831.0,0.7873]
[1746356019337,0.1,1831.6,1831.0,0.7873]
[1746356019533,10.05157948,1831.7,1831.3,0.8093]
[1746356019719,9.95157948,1831.7,1831.3,6.26976433]
[1746356019921,4.492,1831.7,1831.4,0.05460062]
[1746356020155,4.492,1831.7,1831.5,6.26926068]
[1746356020356,4.492,1831.7,1831.5,0.8093]
[1746356023179,4.492,1831.7,1831.5,6.26927712]
[1746356023474,4.492,1831.7,1831.6,14.5]
[1746356026039,4.492,1831.7,1831.6,19.95970735]
[1746356026351,15.99070596,1832.0,1831.6,17.12289077]
[1746356026555,15.99070596,1832.0,1831.6,14.5]
[1746356026758,15.99070596,1832.0,1831.6,19.95970573]
[1746356027570,21.44949137,1832.0,1831.6,14.5]
[1746356028777,15.99070596,1832.0,1831.6,14.5]
[1746356030970,15.99070596,1832.0,1831.7,0.7588]
[1746356031583,15.99070596,1832.0,1831.8,14.5]
[1746356033081,5.45881325,1831.9,1831.8,14.5]
[1746356034684,5.45911347,1831.8,1831.5,0.7791]
[1746356035399,5.45911347,1831.8,1831.6,14.5]
[1746356038063,5.45911347,1831.8,1831.6,17.43811576]
[1746356042865,5.45911347,1831.8,1831.6,14.5]
[1746356043405,5.45940929,1831.7,1831.6,14.5]
[1746356043717,5.45930239,1831.8,1831.6,14.5]
[1746356044600,5.45897452,1831.9,1831.6,14.5]
[1746356044897,5.45936243,1831.8,1831.6,14.5]
[1746356045127,5.45897375,1831.9,1831.6,14.5]
[1746356045325,5.45932986,1831.8,1831.6,14.5]
[1746356045632,5.45904885,1831.9,1831.6,14.5]
[1746356045793,15.99068319,1832.0,1831.7,0.81398945]
[1746356045993,4.492,1832.0,1831.7,0.81398945]
[1746356046203,4.492,1832.0,1831.9,0.7594]
[1746356046401,4.492,1832.0,1831.9,1.38123955]
[1746356046602,5.45810817,1832.2,1831.9,1.38123955]
[1746356046883,5.45810817,1832.2,1831.9,0.7594]
[1746356047193,5.45822699,1832.1,1831.9,0.7594]
[1746356047412,5.45822699,1832.1,1831.7,5.45925688]
[1746356047724,5.45822699,1832.1,1831.8,0.7594]
[1746356048621,9.97278221,1832.3,1831.9,5.45875122]
[1746356048792,9.97278221,1832.3,1831.9,6.08056634]
[1746356048993,0.10245319,1832.2,1831.9,6.08056634]
[1746356049991,0.10245319,1832.2,1831.9,6.13514764]
[1746356050195,0.10245319,1832.2,1831.9,6.08056634]
[1746356050420,0.10245319,1832.2,1831.9,0.62181512]
[1746356051026,0.10245319,1832.2,1832.0,14.5]
[1746356053028,0.10245319,1832.2,1832.0,15.2594]
[1746356054299,0.10245319,1832.2,1832.0,20.71790132]
[1746356060834,0.10245319,1832.2,1832.1,5.45821734]
[1746356061143,0.10245319,1832.2,1832.1,5.51279346]
[1746356061343,0.10245319,1832.2,1832.1,6.23891734]
[1746356061543,0.10245319,1832.2,1832.1,20.79349143]
[1746356061728,0.10245319,1832.2,1832.1,20.73891734]
[1746356061930,0.10245319,1832.2,1832.1,23.35865921]
[1746356066845,4.514,1832.6,1832.3,5.45760656]
[1746356067749,4.514,1832.6,1832.4,14.5]
[1746356068143,0.10695699,1832.5,1832.4,14.5]
[1746356075259,0.10695699,1832.5,1832.4,19.95732372]
[1746356075433,0.10695699,1832.5,1832.4,22.02973609]
[1746356075839,0.10695699,1832.5,1832.4,16.57241237]
[1746356076963,0.10695699,1832.5,1832.4,22.02973609]
[1746356077341,0.10695699,1832.5,1832.4,16.57241237]
[1746356087349,0.10695699,1832.5,1832.4,14.5]
[1746356088770,0.10695699,1832.5,1832.4,19.95732372]
[1746356091256,6.04,1832.7,1832.4,19.95732372]
[1746356091458,0.11191725,1832.6,1832.5,6.26160903]
[1746356091652,6.04,1832.7,1832.5,6.26160903]
[1746356091892,0.11206813,1832.6,1832.5,0.8046]
[1746356092053,6.04,1832.7,1832.5,15.3046]
[1746356092248,0.1119927,1832.6,1832.5,15.3046]
[1746356092468,5.5556889,1833.0,1832.5,15.3046]
[1746356092469,4.617,1833.0,1832.5,21.4533651]
[1746356092667,5.55965256,1832.9,1832.5,21.4533651]
[1746356093464,5.55616057,1832.8,1832.5,14.5]
[1746356093828,0.10343369,1832.7,1832.5,14.5]
[1746356093994,0.10343369,1832.7,1832.5,19.95696463]
[1746356094705,0.10343369,1832.7,1832.5,14.5]
[1746356095204,5.55988587,1832.7,1832.5,14.5]
[1746356098372,5.55988587,1832.7,1832.3,6.24236686]
[1746356098885,5.55988587,1832.7,1832.4,14.5]
[1746356101516,0.1,1832.6,1832.4,14.5]
[1746356101716,0.10297545,1832.5,1832.4,14.5]
[1746356109986,0.10297545,1832.5,1832.4,17.43571141]
[1746356111184,5.56000137,1832.5,1832.4,2.93571141]
[1746356111611,5.45702592,1832.5,1832.4,2.93571141]
[1746356116380,9.9716287,1832.7,1832.4,2.93571141]
[1746356116709,10.07413585,1832.7,1832.4,2.93571141]
[1746356120025,10.07413585,1832.7,1832.5,14.5]
[1746356122448,4.61750715,1832.7,1832.5,14.5]
[1746356123047,4.61750715,1832.7,1832.5,22.24628804]
[1746356123219,4.61750715,1832.7,1832.5,17.5448816]
[1746356125683,4.515,1832.7,1832.5,17.5448816]
[1746356127879,4.515,1832.7,1832.2,0.8101]
[1746356127880,0.1,1832.6,1832.2,0.8101]
[1746356128090,5.45717256,1832.5,1832.1,5.45819966]
[1746356128382,5.45717256,1832.5,1832.1,20.01277434]
[1746356128540,5.55691465,1832.6,1832.1,25.41621927]
[1746356128746,5.55691465,1832.6,1832.2,5.45791519]
[1746356129483,5.55691465,1832.6,1832.3,14.5]
[1746356131652,0.26675697,1832.5,1832.3,14.5]
[1746356142918,5.72379271,1832.5,1832.3,14.5]
[1746356143325,0.26675697,1832.5,1832.3,14.5]
[1746356145117,5.72378394,1832.5,1832.3,14.5]
[1746356146020,0.26675697,1832.5,1832.3,14.5]
[1746356146622,4.77175697,1832.5,1832.3,14.5]
[1746356155670,10.22880057,1832.5,1832.0,0.7788]
[1746356155823,5.45821734,1832.1,1831.4,4.92014338]
[1746356156023,5.45821734,1832.1,1831.8,0.7788]
[1746356156225,0.26217764,1832.0,1831.9,14.5]
[1746356156543,5.55811506,1832.2,1831.9,14.5]
[1746356156726,0.2625618,1832.1,1831.9,14.5]
[1746356156933,5.55811506,1832.2,1831.9,14.5]
[1746356157247,0.2625618,1832.1,1831.9,14.5]
[1746356157576,5.55811506,1832.2,1831.9,14.5]
[1746356157872,0.26217764,1832.0,1831.9,14.5]
[1746356158073,5.55811506,1832.2,1831.9,14.5]
[1746356158370,0.1,1832.2,1831.9,19.95881325]
[1746356158664,0.2625618,1832.1,1831.9,19.95881325]
[1746356159039,0.1,1832.2,1831.9,14.5]
[1746356159239,0.26217764,1832.0,1831.9,14.5]
[1746356159468,5.55793765,1832.2,1831.9,14.5]
[1746356159771,5.45777962,1832.3,1831.9,19.95881325]
[1746356159939,0.26294592,1832.2,1831.9,19.95881325]
[1746356160340,0.26294592,1832.2,1831.9,14.5]
[1746356161376,0.26294592,1832.2,1831.9,19.95880521]
[1746356163783,11.17904678,1832.2,1831.9,14.5]
[1746356163967,5.72088678,1832.2,1831.9,14.5]
[1746356168059,5.82105916,1832.2,1831.9,14.5]
[1746356168461,5.72105916,1832.2,1831.9,14.5]
[1746356170774,5.45835928,1832.1,1831.9,14.5]
[1746356170975,5.71994808,1832.1,1831.9,14.5]
[1746356173688,11.17842868,1832.1,1831.9,14.5]
[1746356173893,5.71994808,1832.1,1831.9,14.5]
[1746356180182,5.45893357,1831.9,1831.6,0.7943]
[1746356180371,0.26036411,1831.8,1831.6,0.84888948]
[1746356180693,0.26036411,1831.8,1831.7,14.5]
[1746356183014,5.45871035,1832.0,1831.7,14.5]
[1746356183175,0.26007578,1831.8,1831.7,14.5]
[1746356183369,5.45871035,1832.0,1831.7,14.5]
[1746356183570,0.26046003,1831.9,1831.7,14.5]
[1746356190005,11.01682247,1832.1,1831.7,14.5]
[1746356190205,0.26007578,1831.8,1831.7,14.5]
[1746356190406,5.45856343,1832.0,1831.7,14.5]
[1746356190709,0.26007578,1831.8,1831.7,14.5]
[1746356190886,5.45856343,1832.0,1831.7,14.5]
[1746356191079,0.26007578,1831.8,1831.7,14.5]
[1746356191622,5.45856343,1832.0,1831.7,14.5]
[1746356191811,0.26007578,1831.8,1831.7,14.5]
[1746356191977,5.45856343,1832.0,1831.7,14.5]
[1746356192313,0.26046003,1831.9,1831.7,14.5]
[1746356199538,0.26046003,1831.9,1831.8,0.8114]
[1746356199723,0.26046003,1831.9,1831.8,6.27051125]
[1746356200123,0.26046003,1831.9,1831.8,20.77051125]
[1746356204539,0.26046003,1831.9,1831.8,15.3114]
[1746356205542,0.26046003,1831.9,1831.8,21.91394278]
[1746356207030,0.26046003,1831.9,1831.8,28.49913599]
[1746356209346,0.26046003,1831.9,1831.8,23.04002474]
[1746356210907,0.26046003,1831.9,1831.8,19.36652445]
[1746356212440,0.26046003,1831.9,1831.8,24.8256357]
[1746356216446,6.04,1832.2,1832.0,0.7801]
[1746356216659,6.04,1832.2,1832.0,6.86226042]
[1746356216946,6.04,1832.2,1832.1,5.45821734]
[1746356217147,6.04,1832.2,1832.1,19.95821734]
[1746356218049,6.27666758,1832.2,1832.1,19.95821734]
[1746356220016,6.27666758,1832.2,1832.1,22.88725983]
[1746356220547,0.23666758,1832.2,1832.1,22.88725983]
[1746356223460,0.23666758,1832.2,1832.1,26.56293315]
[1746356224455,0.23666758,1832.2,1832.1,21.10471581]
[1746356224953,5.69458702,1832.2,1832.1,6.60471581]
[1746356225158,0.23666758,1832.2,1832.1,6.60471581]
[1746356227644,0.23666758,1832.2,1832.0,14.5]
[1746356229783,0.23666758,1832.2,1832.0,19.95849065]
[1746356231572,0.23666758,1832.2,1832.0,23.63416397]
[1746356232672,0.23666758,1832.2,1832.0,26.54344009]
[1746356234703,0.23666758,1832.2,1832.0,21.08494944]
[1746356234903,0.23666758,1832.2,1832.0,18.17567332]
[1746356235570,0.23666758,1832.2,1832.0,23.63417709]
[1746356237570,0.23666758,1832.2,1832.0,18.17567332]
[1746356241911,0.23666758,1832.2,1832.0,19.00237332]
[1746356243808,0.23666758,1832.2,1832.1,0.0545803]
[1746356243976,0.23666758,1832.2,1832.1,7.9643231]
[1746356244379,0.23666758,1832.2,1832.1,22.4643231]
[1746356244681,0.23666758,1832.2,1832.1,22.4097428]
[1746356245415,0.23666758,1832.2,1832.1,16.95152546]
[1746356246819,0.23666758,1832.2,1832.1,25.34082851]
[1746356247116,0.23666758,1832.2,1832.1,26.09322851]
[1746356247726,0.21747254,1832.2,1832.1,26.09322851]
[1746356256626,9.95004274,1832.5,1832.1,26.09322851]
[1746356256926,0.21824074,1832.4,1832.1,26.09322851]
[1746356257127,0.21824074,1832.4,1832.2,2.60932285]